[Event "Titled Tuesday Blitz June 13 Early 2023"]
[White "Sanchez, Robert"]
[Black "rikchessmx"]
[WhiteFideId "2034360"]
[WhiteElo "1923"]
[BlackElo "2310"]
[Result "1-0"]
[Round "9"]
[TimeControl "180+2"]
[Date "2023.06.13"]
[WhiteClock "0:00:09"]
[BlackClock "0:01:10"]
[Board "147"]

1. e4 {[%clk 0:00:45]}  e5 {[%clk 0:02:34]} 2. d4 {[%clk 0:00:44]}  exd4 {[%clk 0:02:33]} 3. c3 {[%clk 0:00:44]}  dxc3 {[%clk 0:02:34]} 4. Bc4 {[%clk 0:00:44]}  cxb2 {[%clk 0:02:33]} 5. Bxb2 {[%clk 0:00:45]}  d6 {[%clk 0:02:33]} 6. Nf3 {[%clk 0:00:45]}  Be7 {[%clk 0:02:32]} 7. Qb3 {[%clk 0:00:45]}  Nh6 {[%clk 0:02:31]} 8. Bxg7 {[%clk 0:00:44]}  Bf6 {[%clk 0:02:32]} 9. Bxh8 {[%clk 0:00:40]}  Bxh8 {[%clk 0:02:31]} 10. Nc3 {[%clk 0:00:40]}  Qf6 {[%clk 0:02:31]} 11. Rc1 {[%clk 0:00:40]}  c6 {[%clk 0:02:30]} 12. O-O {[%clk 0:00:40]}  Nd7 {[%clk 0:02:26]} 13. Rfe1 {[%clk 0:00:35]}  Nc5 {[%clk 0:02:24]} 14. Qc2 {[%clk 0:00:34]}  Qg6 {[%clk 0:02:11]} 15. e5 {[%clk 0:00:28]}  d5 {[%clk 0:02:05]} 16. Bb3 {[%clk 0:00:23]}  Bf5 {[%clk 0:02:00]} 17. Qd2 {[%clk 0:00:16]}  O-O-O {[%clk 0:01:55]} 18. Nxd5 {[%clk 0:00:13]}  cxd5 {[%clk 0:01:37]} 19. Rxc5+ {[%clk 0:00:12]}  Kb8 {[%clk 0:01:38]} 20. Rxd5 {[%clk 0:00:13]}  Rc8 {[%clk 0:01:32]} 21. Qb4 {[%clk 0:00:11]}  Ng4 {[%clk 0:01:26]} 22. Nh4 {[%clk 0:00:09]}  Qh5 {[%clk 0:01:23]} 23. Nxf5 {[%clk 0:00:09]}  Qxh2+ {[%clk 0:01:23]} 24. Kf1 {[%clk 0:00:10]}  Qf4 {[%clk 0:01:17]} 25. Qxf4 {[%clk 0:00:10]}  h5 {[%clk 0:01:13]} 26. e6+ {[%clk 0:00:09]}  Ka8 {[%clk 0:01:13]} 27. e7 {[%clk 0:00:09]}  Re8 {[%clk 0:01:10]} 28. Rd8+ {[%clk 0:00:09]} 1-0


[Site "https://www.chess.com"]

[Event "Titled Tuesday Blitz June 13 Early 2023"]
[White "Mazarini41"]
[Black "Nikulina, Alena"]
[BlackFideId "4172051"]
[WhiteElo "2530"]
[BlackElo "1608"]
[Result "1-0"]
[Round "9"]
[TimeControl "180+2"]
[Date "2023.06.13"]
[WhiteClock "0:01:33"]
[BlackClock "0:00:58"]
[Board "148"]

1. Nf3 {[%clk 0:02:59]}  d5 {[%clk 0:02:59]} 2. d4 {[%clk 0:02:58]}  Nf6 {[%clk 0:02:57]} 3. c4 {[%clk 0:02:59]}  dxc4 {[%clk 0:02:57]} 4. e3 {[%clk 0:02:58]}  a6 {[%clk 0:02:57]} 5. Bxc4 {[%clk 0:02:56]}  b5 {[%clk 0:02:55]} 6. Bd3 {[%clk 0:02:49]}  e6 {[%clk 0:02:55]} 7. O-O {[%clk 0:02:48]}  Be7 {[%clk 0:02:53]} 8. a4 {[%clk 0:02:48]}  b4 {[%clk 0:02:51]} 9. Nbd2 {[%clk 0:02:48]}  O-O {[%clk 0:02:44]} 10. e4 {[%clk 0:02:35]}  Bb7 {[%clk 0:02:42]} 11. e5 {[%clk 0:02:32]}  Nd5 {[%clk 0:02:39]} 12. Ne4 {[%clk 0:02:31]}  Nd7 {[%clk 0:02:31]} 13. Nfg5 {[%clk 0:02:00]}  g6 {[%clk 0:02:01]} 14. Qg4 {[%clk 0:01:48]}  h6 {[%clk 0:01:18]} 15. Nxe6 {[%clk 0:01:43]}  fxe6 {[%clk 0:01:07]} 16. Qxg6+ {[%clk 0:01:43]}  Kh8 {[%clk 0:01:04]} 17. Qxh6+ {[%clk 0:01:44]}  Kg8 {[%clk 0:01:04]} 18. Qg6+ {[%clk 0:01:37]}  Kh8 {[%clk 0:01:04]} 19. Ng5 {[%clk 0:01:33]}  Bxg5 {[%clk 0:00:58]} 20. Qh7# {[%clk 0:01:33]} 1-0


[Site "https://www.chess.com"]

[Event "Titled Tuesday Blitz June 13 Early 2023"]
[White "rionelG"]
[Black "Tokman, Ariel"]
[BlackFideId "117420"]
[WhiteElo "2223"]
[BlackElo "2263"]
[Result "0-1"]
[Round "9"]
[TimeControl "180+2"]
[Date "2023.06.13"]
[WhiteClock "0:00:01"]
[BlackClock "0:00:04"]
[Board "149"]

1. e4 {[%clk 0:02:50]}  e6 {[%clk 0:02:58]} 2. d3 {[%clk 0:02:50]}  d5 {[%clk 0:02:52]} 3. Nd2 {[%clk 0:02:49]}  Nf6 {[%clk 0:02:52]} 4. g3 {[%clk 0:02:49]}  Be7 {[%clk 0:02:52]} 5. Bg2 {[%clk 0:02:49]}  O-O {[%clk 0:02:52]} 6. Ngf3 {[%clk 0:02:49]}  c5 {[%clk 0:02:52]} 7. O-O {[%clk 0:02:49]}  Nc6 {[%clk 0:02:52]} 8. Re1 {[%clk 0:02:50]}  Qc7 {[%clk 0:02:50]} 9. e5 {[%clk 0:02:47]}  Nd7 {[%clk 0:02:44]} 10. Qe2 {[%clk 0:02:47]}  b5 {[%clk 0:02:44]} 11. Nf1 {[%clk 0:02:47]}  Bb7 {[%clk 0:02:44]} 12. Bf4 {[%clk 0:02:45]}  Rfc8 {[%clk 0:02:44]} 13. c3 {[%clk 0:02:39]}  Qd8 {[%clk 0:02:45]} 14. h4 {[%clk 0:02:38]}  Qf8 {[%clk 0:02:38]} 15. N1h2 {[%clk 0:02:33]}  b4 {[%clk 0:02:27]} 16. c4 {[%clk 0:02:27]}  dxc4 {[%clk 0:02:19]} 17. dxc4 {[%clk 0:02:27]}  Rd8 {[%clk 0:02:20]} 18. b3 {[%clk 0:02:19]}  Qe8 {[%clk 0:02:05]} 19. Rad1 {[%clk 0:02:18]}  Nf8 {[%clk 0:01:58]} 20. h5 {[%clk 0:02:16]}  h6 {[%clk 0:01:58]} 21. Ng4 {[%clk 0:02:13]}  Nh7 {[%clk 0:01:52]} 22. Qe3 {[%clk 0:02:07]}  Rxd1 {[%clk 0:01:29]} 23. Rxd1 {[%clk 0:02:05]}  Rd8 {[%clk 0:01:30]} 24. Qc1 {[%clk 0:01:49]}  Nd4 {[%clk 0:00:58]} 25. Nxd4 {[%clk 0:01:31]}  Bxg2 {[%clk 0:00:59]} 26. Nxe6 {[%clk 0:01:04]}  Rxd1+ {[%clk 0:00:23]} 27. Qxd1 {[%clk 0:01:05]}  Bc6 {[%clk 0:00:09]} 28. Nc7 {[%clk 0:01:04]}  Qc8 {[%clk 0:00:09]} 29. Nd5 {[%clk 0:00:53]}  Bf8 {[%clk 0:00:08]} 30. Nge3 {[%clk 0:00:44]}  Qe6 {[%clk 0:00:08]} 31. Qg4 {[%clk 0:00:43]}  Qe8 {[%clk 0:00:08]} 32. Qf5 {[%clk 0:00:37]}  Bd7 {[%clk 0:00:08]} 33. Qe4 {[%clk 0:00:36]}  Kh8 {[%clk 0:00:07]} 34. Nf5 {[%clk 0:00:22]}  Bc6 {[%clk 0:00:07]} 35. Qd3 {[%clk 0:00:17]}  Qe6 {[%clk 0:00:07]} 36. Nde3 {[%clk 0:00:14]}  a5 {[%clk 0:00:07]} 37. Qd8 {[%clk 0:00:12]}  a4 {[%clk 0:00:07]} 38. Nd6 {[%clk 0:00:11]}  axb3 {[%clk 0:00:06]} 39. axb3 {[%clk 0:00:11]}  Kg8 {[%clk 0:00:07]} 40. Nef5 {[%clk 0:00:07]}  f6 {[%clk 0:00:07]} 41. exf6 {[%clk 0:00:02]}  Nxf6 {[%clk 0:00:06]} 42. Kh2 {[%clk 0:00:02]}  Ng4+ {[%clk 0:00:06]} 43. Kh3 {[%clk 0:00:02]}  Nxf2+ {[%clk 0:00:07]} 44. Kh4 {[%clk 0:00:03]}  Ne4 {[%clk 0:00:05]} 45. Nxe4 {[%clk 0:00:03]}  Qxf5 {[%clk 0:00:05]} 46. Nd6 {[%clk 0:00:02]}  Qe6 {[%clk 0:00:04]} 47. Nb5 {[%clk 0:00:02]}  Bd7 {[%clk 0:00:04]} 48. g4 {[%clk 0:00:01]}  Qxg4# {[%clk 0:00:04]} 0-1


[Site "https://www.chess.com"]

[Event "Titled Tuesday Blitz June 13 Early 2023"]
[White "Pein, Jonathan"]
[Black "Mishra, Manoj"]
[WhiteFideId "417092"]
[BlackFideId "5006007"]
[WhiteElo "2151"]
[BlackElo "1847"]
[Result "0-1"]
[Round "9"]
[TimeControl "180+2"]
[Date "2023.06.13"]
[WhiteClock "0:00:00"]
[BlackClock "0:00:22"]
[Board "150"]

1. e4 {[%clk 0:01:13]}  Nf6 {[%clk 0:02:45]} 2. d3 {[%clk 0:01:11]}  e5 {[%clk 0:02:43]} 3. Nf3 {[%clk 0:01:12]}  Nc6 {[%clk 0:02:43]} 4. g3 {[%clk 0:01:12]}  Bc5 {[%clk 0:02:43]} 5. Bg2 {[%clk 0:01:13]}  d6 {[%clk 0:02:41]} 6. O-O {[%clk 0:01:13]}  h5 {[%clk 0:02:41]} 7. h3 {[%clk 0:01:12]}  Bd7 {[%clk 0:02:31]} 8. Nc3 {[%clk 0:01:09]}  Qc8 {[%clk 0:02:30]} 9. Kh2 {[%clk 0:01:08]}  Ng4+ {[%clk 0:02:22]} 10. hxg4 {[%clk 0:01:08]}  hxg4+ {[%clk 0:02:21]} 11. Nh4 {[%clk 0:01:09]}  Qd8 {[%clk 0:02:14]} 12. Kg1 {[%clk 0:01:07]}  Rxh4 {[%clk 0:02:13]} 13. gxh4 {[%clk 0:01:08]}  Qxh4 {[%clk 0:02:13]} 14. Be3 {[%clk 0:00:26]}  g3 {[%clk 0:02:09]} 15. Re1 {[%clk 0:00:16]}  gxf2+ {[%clk 0:01:52]} 16. Kf1 {[%clk 0:00:16]}  fxe1=Q+ {[%clk 0:01:42]} 17. Qxe1 {[%clk 0:00:17]}  Qxe1+ {[%clk 0:01:30]} 18. Rxe1 {[%clk 0:00:18]}  Nd4 {[%clk 0:01:26]} 19. Nd5 {[%clk 0:00:14]}  O-O-O {[%clk 0:01:24]} 20. Bxd4 {[%clk 0:00:15]}  Bxd4 {[%clk 0:01:20]} 21. c3 {[%clk 0:00:15]}  Bb6 {[%clk 0:01:20]} 22. Ke2 {[%clk 0:00:09]}  Rh8 {[%clk 0:01:15]} 23. Kf3 {[%clk 0:00:06]}  c6 {[%clk 0:01:10]} 24. Nxb6+ {[%clk 0:00:03]}  axb6 {[%clk 0:01:11]} 25. a3 {[%clk 0:00:03]}  f5 {[%clk 0:01:06]} 26. Kg3 {[%clk 0:00:03]}  f4+ {[%clk 0:01:06]} 27. Kf2 {[%clk 0:00:04]}  g5 {[%clk 0:01:04]} 28. d4 {[%clk 0:00:04]}  g4 {[%clk 0:01:03]} 29. dxe5 {[%clk 0:00:05]}  dxe5 {[%clk 0:01:02]} 30. Rd1 {[%clk 0:00:06]}  Kc7 {[%clk 0:00:57]} 31. b4 {[%clk 0:00:04]}  g3+ {[%clk 0:00:56]} 32. Kg1 {[%clk 0:00:05]}  Bg4 {[%clk 0:00:55]} 33. Rf1 {[%clk 0:00:05]}  Rd8 {[%clk 0:00:50]} 34. Bf3 {[%clk 0:00:06]}  Bh3 {[%clk 0:00:45]} 35. Rd1 {[%clk 0:00:06]}  Rxd1+ {[%clk 0:00:36]} 36. Bxd1 {[%clk 0:00:07]}  b5 {[%clk 0:00:35]} 37. a4 {[%clk 0:00:05]}  bxa4 {[%clk 0:00:32]} 38. Bxa4 {[%clk 0:00:06]}  f3 {[%clk 0:00:29]} 39. Bb5 {[%clk 0:00:06]}  f2+ {[%clk 0:00:28]} 40. Kh1 {[%clk 0:00:06]}  cxb5 {[%clk 0:00:25]} 41. c4 {[%clk 0:00:00]}  g2+ {[%clk 0:00:22]} 0-1


[Site "https://www.chess.com"]

[Event "Titled Tuesday Blitz June 13 Early 2023"]
[White "Mirzanurov, Bulat"]
[Black "Kuznetsov, Mikhail"]
[WhiteFideId "4184521"]
[BlackFideId "4117190"]
[WhiteElo "2005"]
[BlackElo "1981"]
[Result "0-1"]
[Round "9"]
[TimeControl "180+2"]
[Date "2023.06.13"]
[WhiteClock "0:00:01"]
[BlackClock "0:01:23"]
[Board "152"]

1. e4 {[%clk 0:03:00]}  c6 {[%clk 0:02:57]} 2. d4 {[%clk 0:02:59]}  d5 {[%clk 0:02:55]} 3. exd5 {[%clk 0:02:59]}  cxd5 {[%clk 0:02:55]} 4. Nf3 {[%clk 0:03:00]}  Nf6 {[%clk 0:02:54]} 5. Ne5 {[%clk 0:02:58]}  Nc6 {[%clk 0:02:53]} 6. c3 {[%clk 0:02:49]}  e6 {[%clk 0:02:52]} 7. Nd2 {[%clk 0:02:38]}  Nxe5 {[%clk 0:02:49]} 8. dxe5 {[%clk 0:02:36]}  Nd7 {[%clk 0:02:50]} 9. Nf3 {[%clk 0:02:30]}  Be7 {[%clk 0:02:49]} 10. Bd3 {[%clk 0:02:30]}  O-O {[%clk 0:02:49]} 11. O-O {[%clk 0:02:29]}  Nc5 {[%clk 0:02:48]} 12. Bc2 {[%clk 0:02:28]}  f5 {[%clk 0:02:41]} 13. exf6 {[%clk 0:02:17]}  Bxf6 {[%clk 0:02:42]} 14. Be3 {[%clk 0:02:14]}  b6 {[%clk 0:02:37]} 15. Re1 {[%clk 0:01:56]}  Qd6 {[%clk 0:02:29]} 16. Bd4 {[%clk 0:01:41]}  Nd7 {[%clk 0:02:23]} 17. Qd3 {[%clk 0:01:23]}  g6 {[%clk 0:02:18]} 18. Bxf6 {[%clk 0:01:13]}  Rxf6 {[%clk 0:02:19]} 19. Rad1 {[%clk 0:01:02]}  Bb7 {[%clk 0:02:10]} 20. Ng5 {[%clk 0:01:00]}  Qe7 {[%clk 0:01:57]} 21. Qh3 {[%clk 0:00:45]}  Re8 {[%clk 0:01:45]} 22. Rd2 {[%clk 0:00:29]}  e5 {[%clk 0:01:41]} 23. Ne4 {[%clk 0:00:19]}  Rf4 {[%clk 0:01:30]} 24. g3 {[%clk 0:00:06]}  Rf7 {[%clk 0:01:27]} 25. Ng5 {[%clk 0:00:03]}  Qxg5 {[%clk 0:01:23]} 26. Bb3 {[%clk 0:00:01]} 0-1


[Site "https://www.chess.com"]

[Event "Titled Tuesday Blitz June 13 Early 2023"]
[White "Koridze, Lile"]
[Black "le-castor-faineant"]
[WhiteFideId "13612514"]
[WhiteElo "2047"]
[BlackElo "2195"]
[Result "1-0"]
[Round "9"]
[TimeControl "180+2"]
[Date "2023.06.13"]
[WhiteClock "0:02:33"]
[BlackClock "0:00:13"]
[Board "153"]

1. d4 {[%clk 0:03:00]}  Nf6 {[%clk 0:02:55]} 2. c4 {[%clk 0:03:01]}  g6 {[%clk 0:02:54]} 3. Nc3 {[%clk 0:03:01]}  Bg7 {[%clk 0:02:54]} 4. e4 {[%clk 0:03:01]}  d6 {[%clk 0:02:55]} 5. Nf3 {[%clk 0:03:01]}  O-O {[%clk 0:02:55]} 6. Be2 {[%clk 0:03:02]}  Nbd7 {[%clk 0:02:54]} 7. O-O {[%clk 0:03:00]}  e5 {[%clk 0:02:53]} 8. Be3 {[%clk 0:02:59]}  Re8 {[%clk 0:02:50]} 9. d5 {[%clk 0:02:59]}  Nc5 {[%clk 0:02:39]} 10. Qc2 {[%clk 0:02:59]}  a5 {[%clk 0:02:39]} 11. a3 {[%clk 0:02:59]}  Bg4 {[%clk 0:01:05]} 12. b4 {[%clk 0:02:57]}  Ncd7 {[%clk 0:01:01]} 13. h3 {[%clk 0:02:55]}  Bxf3 {[%clk 0:01:01]} 14. Bxf3 {[%clk 0:02:56]}  Nf8 {[%clk 0:00:57]} 15. c5 {[%clk 0:02:56]}  N6d7 {[%clk 0:00:53]} 16. cxd6 {[%clk 0:02:54]}  cxd6 {[%clk 0:00:51]} 17. Nb5 {[%clk 0:02:54]}  Nb6 {[%clk 0:00:42]} 18. bxa5 {[%clk 0:02:48]}  Rxa5 {[%clk 0:00:41]} 19. Qb3 {[%clk 0:02:48]}  Na4 {[%clk 0:00:36]} 20. Rfc1 {[%clk 0:02:45]}  Nd7 {[%clk 0:00:34]} 21. Nxd6 {[%clk 0:02:45]}  Ndc5 {[%clk 0:00:31]} 22. Bxc5 {[%clk 0:02:45]}  Nxc5 {[%clk 0:00:31]} 23. Rxc5 {[%clk 0:02:44]}  Rxc5 {[%clk 0:00:31]} 24. Nxe8 {[%clk 0:02:40]}  Qxe8 {[%clk 0:00:28]} 25. Qxb7 {[%clk 0:02:40]}  Ra5 {[%clk 0:00:23]} 26. Rc1 {[%clk 0:02:37]}  Bf8 {[%clk 0:00:20]} 27. Rc8 {[%clk 0:02:37]}  Qb5 {[%clk 0:00:13]} 28. Qe7 {[%clk 0:02:33]} 1-0


[Site "https://www.chess.com"]

[Event "Titled Tuesday Blitz June 13 Early 2023"]
[White "Osuna Vega, Enrique"]
[Black "Freile Martin, Javier"]
[WhiteFideId "2219549"]
[BlackFideId "3600165"]
[WhiteElo "2174"]
[BlackElo "2320"]
[Result "0-1"]
[Round "9"]
[TimeControl "180+2"]
[Date "2023.06.13"]
[WhiteClock "0:00:01"]
[BlackClock "0:01:38"]
[Board "154"]

1. e4 {[%clk 0:02:59]}  c5 {[%clk 0:02:58]} 2. Nf3 {[%clk 0:02:58]}  d6 {[%clk 0:02:58]} 3. d4 {[%clk 0:02:59]}  cxd4 {[%clk 0:02:58]} 4. Nxd4 {[%clk 0:02:59]}  Nf6 {[%clk 0:02:58]} 5. f3 {[%clk 0:03:00]}  Bd7 {[%clk 0:02:57]} 6. c4 {[%clk 0:02:58]}  e6 {[%clk 0:02:57]} 7. Nc3 {[%clk 0:02:58]}  Nc6 {[%clk 0:02:57]} 8. Be3 {[%clk 0:02:57]}  a6 {[%clk 0:02:57]} 9. Qd2 {[%clk 0:02:57]}  h5 {[%clk 0:02:56]} 10. Be2 {[%clk 0:02:51]}  Be7 {[%clk 0:02:56]} 11. O-O {[%clk 0:02:50]}  Rc8 {[%clk 0:02:52]} 12. Rfd1 {[%clk 0:02:49]}  h4 {[%clk 0:02:50]} 13. Rac1 {[%clk 0:02:45]}  Qa5 {[%clk 0:02:46]} 14. Nb3 {[%clk 0:02:11]}  Qc7 {[%clk 0:02:41]} 15. Nd4 {[%clk 0:01:57]}  Ne5 {[%clk 0:02:36]} 16. b3 {[%clk 0:01:46]}  h3 {[%clk 0:02:35]} 17. g3 {[%clk 0:01:45]}  Qb8 {[%clk 0:02:28]} 18. Rf1 {[%clk 0:01:06]}  Kf8 {[%clk 0:02:16]} 19. Qd1 {[%clk 0:01:01]}  Nc6 {[%clk 0:02:09]} 20. f4 {[%clk 0:00:59]}  Nxd4 {[%clk 0:02:08]} 21. Bxd4 {[%clk 0:01:00]}  Bc6 {[%clk 0:02:06]} 22. Bf3 {[%clk 0:01:00]}  b5 {[%clk 0:02:05]} 23. cxb5 {[%clk 0:00:52]}  axb5 {[%clk 0:02:04]} 24. e5 {[%clk 0:00:52]}  dxe5 {[%clk 0:01:51]} 25. Bxe5 {[%clk 0:00:43]}  Bc5+ {[%clk 0:01:47]} 26. Kh1 {[%clk 0:00:39]}  Qb7 {[%clk 0:01:46]} 27. Bd6+ {[%clk 0:00:30]}  Bxd6 {[%clk 0:01:44]} 28. Qxd6+ {[%clk 0:00:31]}  Kg8 {[%clk 0:01:44]} 29. Bxc6 {[%clk 0:00:01]}  Rxc6 {[%clk 0:01:38]} 0-1


[Site "https://www.chess.com"]

[Event "Titled Tuesday Blitz June 13 Early 2023"]
[White "Sailer, Mike"]
[Black "Simonovic, Miroslav"]
[WhiteFideId "2012901"]
[BlackFideId "919152"]
[WhiteElo "2109"]
[BlackElo "2075"]
[Result "0-1"]
[Round "9"]
[TimeControl "180+2"]
[Date "2023.06.13"]
[WhiteClock "0:00:21"]
[BlackClock "0:00:43"]
[Board "155"]

1. d4 {[%clk 0:02:58]}  Nf6 {[%clk 0:02:59]} 2. Bg5 {[%clk 0:02:58]}  e6 {[%clk 0:02:56]} 3. Nd2 {[%clk 0:02:58]}  h6 {[%clk 0:02:56]} 4. Bh4 {[%clk 0:02:58]}  g5 {[%clk 0:02:55]} 5. Bg3 {[%clk 0:02:58]}  Bg7 {[%clk 0:02:56]} 6. e4 {[%clk 0:02:58]}  d6 {[%clk 0:02:56]} 7. Bd3 {[%clk 0:02:57]}  Nbd7 {[%clk 0:02:53]} 8. Qe2 {[%clk 0:02:51]}  e5 {[%clk 0:02:53]} 9. c3 {[%clk 0:02:46]}  Qe7 {[%clk 0:02:47]} 10. h4 {[%clk 0:02:46]}  g4 {[%clk 0:02:46]} 11. h5 {[%clk 0:02:46]}  b6 {[%clk 0:02:39]} 12. Bh4 {[%clk 0:02:45]}  Bb7 {[%clk 0:02:37]} 13. f3 {[%clk 0:02:36]}  gxf3 {[%clk 0:02:30]} 14. Ngxf3 {[%clk 0:02:33]}  O-O-O {[%clk 0:02:28]} 15. O-O-O {[%clk 0:02:31]}  Rde8 {[%clk 0:02:22]} 16. Ba6 {[%clk 0:02:23]}  Qe6 {[%clk 0:02:07]} 17. Bxb7+ {[%clk 0:02:19]}  Kxb7 {[%clk 0:02:08]} 18. Bxf6 {[%clk 0:02:15]}  Bxf6 {[%clk 0:02:04]} 19. d5 {[%clk 0:02:12]}  Qg4 {[%clk 0:02:04]} 20. b4 {[%clk 0:01:34]}  a6 {[%clk 0:01:59]} 21. a4 {[%clk 0:01:27]}  Reg8 {[%clk 0:01:58]} 22. Rhg1 {[%clk 0:01:24]}  Qxh5 {[%clk 0:01:55]} 23. Qc4 {[%clk 0:01:24]}  Nb8 {[%clk 0:01:53]} 24. Nb3 {[%clk 0:01:21]}  Bg5+ {[%clk 0:01:28]} 25. Kb2 {[%clk 0:01:13]}  Be3 {[%clk 0:01:27]} 26. Rgf1 {[%clk 0:01:06]}  Rxg2+ {[%clk 0:01:26]} 27. Ka3 {[%clk 0:01:06]}  Rf2 {[%clk 0:01:08]} 28. Rxf2 {[%clk 0:01:02]}  Bxf2 {[%clk 0:01:09]} 29. Nfd2 {[%clk 0:00:57]}  Qxd1 {[%clk 0:01:07]} 30. b5 {[%clk 0:00:54]}  a5 {[%clk 0:01:03]} 31. Nxa5+ {[%clk 0:00:53]}  bxa5 {[%clk 0:01:03]} 32. Nb3 {[%clk 0:00:53]}  Bc5+ {[%clk 0:01:02]} 33. Nxc5+ {[%clk 0:00:52]}  dxc5 {[%clk 0:01:03]} 34. Qxc5 {[%clk 0:00:53]}  Qa1+ {[%clk 0:00:59]} 35. Kb3 {[%clk 0:00:53]}  Rd8 {[%clk 0:00:51]} 36. b6 {[%clk 0:00:31]}  cxb6 {[%clk 0:00:49]} 37. Qe7+ {[%clk 0:00:31]}  Rd7 {[%clk 0:00:47]} 38. Qxe5 {[%clk 0:00:31]}  Qb1+ {[%clk 0:00:45]} 39. Ka3 {[%clk 0:00:21]}  Qd3 {[%clk 0:00:43]} 0-1


[Site "https://www.chess.com"]

[Event "Titled Tuesday Blitz June 13 Early 2023"]
[White "Philippe, Guillaume"]
[Black "babbilator"]
[WhiteFideId "36048763"]
[WhiteElo "2387"]
[BlackElo "2284"]
[Result "1-0"]
[Round "9"]
[TimeControl "180+2"]
[Date "2023.06.13"]
[WhiteClock "0:01:55"]
[BlackClock "0:00:07"]
[Board "157"]

1. e4 {[%clk 0:02:55]}  c5 {[%clk 0:02:59]} 2. Nf3 {[%clk 0:02:55]}  e6 {[%clk 0:02:59]} 3. d4 {[%clk 0:02:56]}  cxd4 {[%clk 0:02:59]} 4. Nxd4 {[%clk 0:02:57]}  Nc6 {[%clk 0:02:59]} 5. Nc3 {[%clk 0:02:57]}  Qc7 {[%clk 0:02:59]} 6. g4 {[%clk 0:02:56]}  a6 {[%clk 0:02:50]} 7. Be3 {[%clk 0:02:54]}  Bb4 {[%clk 0:02:04]} 8. Qd2 {[%clk 0:02:42]}  Nf6 {[%clk 0:01:59]} 9. f3 {[%clk 0:02:41]}  d5 {[%clk 0:01:59]} 10. g5 {[%clk 0:02:38]}  Nd7 {[%clk 0:01:56]} 11. exd5 {[%clk 0:02:37]}  exd5 {[%clk 0:01:56]} 12. O-O-O {[%clk 0:02:34]}  O-O {[%clk 0:01:43]} 13. Kb1 {[%clk 0:02:32]}  Nb6 {[%clk 0:01:42]} 14. Bd3 {[%clk 0:02:30]}  Nc4 {[%clk 0:01:32]} 15. Bxc4 {[%clk 0:02:30]}  dxc4 {[%clk 0:01:32]} 16. Nd5 {[%clk 0:02:15]}  Bxd2 {[%clk 0:01:12]} 17. Nxc7 {[%clk 0:02:15]}  Bxe3 {[%clk 0:01:11]} 18. Nxc6 {[%clk 0:02:15]}  bxc6 {[%clk 0:01:08]} 19. Nxa8 {[%clk 0:02:15]}  Bb7 {[%clk 0:00:50]} 20. Nc7 {[%clk 0:02:15]}  Bxg5 {[%clk 0:00:32]} 21. Rhe1 {[%clk 0:02:03]}  Bd8 {[%clk 0:00:20]} 22. Re8 {[%clk 0:01:54]}  Bxc7 {[%clk 0:00:17]} 23. Rxf8+ {[%clk 0:01:55]}  Kxf8 {[%clk 0:00:18]} 24. Rd7 {[%clk 0:01:55]}  c5 {[%clk 0:00:10]} 25. Rxc7 {[%clk 0:01:54]}  Bxf3 {[%clk 0:00:11]} 26. Rxc5 {[%clk 0:01:55]}  g5 {[%clk 0:00:07]} 27. Rxg5 {[%clk 0:01:55]} 1-0


[Site "https://www.chess.com"]

[Event "Titled Tuesday Blitz June 13 Early 2023"]
[White "Clawitter, Craig"]
[Black "Fabris, Alberto"]
[WhiteFideId "2023105"]
[BlackFideId "801348"]
[WhiteElo "2228"]
[BlackElo "2169"]
[Result "0-1"]
[Round "9"]
[TimeControl "180+2"]
[Date "2023.06.13"]
[WhiteClock "0:00:24"]
[BlackClock "0:01:31"]
[Board "160"]

1. e4 {[%clk 0:02:56]}  c5 {[%clk 0:02:59]} 2. Nf3 {[%clk 0:02:55]}  d6 {[%clk 0:02:59]} 3. d4 {[%clk 0:02:56]}  cxd4 {[%clk 0:03:00]} 4. Nxd4 {[%clk 0:02:57]}  Nf6 {[%clk 0:03:00]} 5. Nc3 {[%clk 0:02:57]}  a6 {[%clk 0:03:01]} 6. Be3 {[%clk 0:02:56]}  e5 {[%clk 0:03:00]} 7. Nb3 {[%clk 0:02:56]}  Be7 {[%clk 0:03:00]} 8. f3 {[%clk 0:02:56]}  O-O {[%clk 0:02:59]} 9. Qd2 {[%clk 0:02:56]}  Qc7 {[%clk 0:02:59]} 10. g4 {[%clk 0:02:56]}  Be6 {[%clk 0:02:56]} 11. O-O-O {[%clk 0:02:55]}  b5 {[%clk 0:02:51]} 12. Rg1 {[%clk 0:02:48]}  Nbd7 {[%clk 0:02:46]} 13. g5 {[%clk 0:02:47]}  Ne8 {[%clk 0:02:36]} 14. f4 {[%clk 0:02:34]}  Nc5 {[%clk 0:02:29]} 15. f5 {[%clk 0:02:29]}  Bxb3 {[%clk 0:02:27]} 16. axb3 {[%clk 0:02:28]}  b4 {[%clk 0:02:24]} 17. Nd5 {[%clk 0:02:27]}  Nxb3+ {[%clk 0:02:24]} 18. Kb1 {[%clk 0:02:23]}  Nxd2+ {[%clk 0:02:25]} 19. Rxd2 {[%clk 0:02:23]}  Qb7 {[%clk 0:02:23]} 20. f6 {[%clk 0:02:20]}  Bd8 {[%clk 0:02:21]} 21. fxg7 {[%clk 0:02:16]}  Nxg7 {[%clk 0:02:20]} 22. Nf6+ {[%clk 0:01:50]}  Kh8 {[%clk 0:02:20]} 23. Rxd6 {[%clk 0:01:50]}  Ne6 {[%clk 0:02:18]} 24. Bc4 {[%clk 0:01:44]}  Bxf6 {[%clk 0:02:14]} 25. gxf6 {[%clk 0:01:31]}  Qxe4 {[%clk 0:02:11]} 26. Bh6 {[%clk 0:01:23]}  Rg8 {[%clk 0:01:53]} 27. Bg7+ {[%clk 0:01:16]}  Nxg7 {[%clk 0:01:52]} 28. Bd5 {[%clk 0:01:05]}  Qd4 {[%clk 0:01:40]} 29. Rxg7 {[%clk 0:00:35]}  Rxg7 {[%clk 0:01:38]} 30. fxg7+ {[%clk 0:00:36]}  Kxg7 {[%clk 0:01:38]} 31. Rd7 {[%clk 0:00:35]}  Qg1+ {[%clk 0:01:32]} 32. Ka2 {[%clk 0:00:34]}  Rf8 {[%clk 0:01:32]} 33. h4 {[%clk 0:00:24]}  Qh2 {[%clk 0:01:31]} 0-1


[Site "https://www.chess.com"]